[Event "Marshall CC FIDE Premier November 2024"]
[Site "New York"]
[Date "2024.11.03"]
[Round "3.4"]
[White "Zhu, Linxi"]
[Black "Ayyappan, Santhosh"]
[Result "1-0"]
[ECO "C90"]
[WhiteElo "2143"]
[BlackElo "1933"]
[Annotator "RC"]
[PlyCount "171"]
[EventDate "2024.11.01"]
[EventType "swiss"]
[EventCountry "USA"]
[SourceTitle "playchess.com"]
[Source "ChessBase"]
[SourceQuality "1"]
[TimeControl "5400+30"]

1. e4 {[%emt 0:00:02]} e5 {[%emt 0:07:02]} 2. Nf3 {[%emt 0:00:10]} Nc6 {[%emt 0:00:36]} 3. Bb5 {[%emt 0:00:07]} a6 {[%emt 0:00:04]} 4. Ba4 {[%emt 0:00:06]} Nf6 {[%emt 0:00:07]} 5. O-O {[%emt 0:00:08]} b5 {[%emt 0:00:04]} 6. Bb3 {[%emt 0:00:05]} Be7 {[%emt 0:00:04]} 7. Re1 {[%emt 0:00:06]} d6 {[%emt 0:00:03]} 8. c3 {[%emt 0:00:06]} Na5 {[%emt 0:00:02]} 9. Bc2 {[%emt 0:00:08]} c5 {[%emt 0:00:04]} 10. d4 {[%emt 0:00:45]} Qc7 {[%emt 0:00:05]} 11. d5 {[%emt 0:00:04]} Nc4 {[%emt 0:00:05]} 12. b3 {[%emt 0:00:09]} Nb6 {[%emt 0:00:04]} 13. a4 {[%emt 0:03:18]} O-O {[%emt 0:03:15]} 14. a5 {[%emt 0:02:36]} Nbd7 {[%emt 0:00:07]} 15. Nbd2 {[%emt 0:00:29]} Re8 {[%emt 0:02:51]} 16. Nf1 {[%emt 0:01:36]} Nf8 {[%emt 0:00:19]} 17. Ng3 {[%emt 0:00:07]} h6 {[%emt 0:02:40]} 18. h3 {[%emt 0:03:21]} Bd7 {[%emt 0:02:58]} 19. Be3 {[%emt 0:02:01]} Kh7 {[%emt 0:05:20]} 20. Nh4 {[%emt 0:08:09]} g6 {[%emt 0:01:38]} 21. Nf3 {[%emt 0:04:22]} Ng8 {[%emt 0:05:04]} 22. Nh2 {[%emt 0:01:30]} Bf6 {[%emt 0:04:01]} 23. Qf3 {[%emt 0:01:57]} Kg7 {[%emt 0:03:25]} 24. Ng4 {[%emt 0:05:57]} Bxg4 {[%emt 0:00:42]} 25. Qxg4 {[%emt 0:01:47]} Kh7 {[%emt 0:01:10]} 26. Qf3 {[%emt 0:00:44]} Kg7 {[%emt 0:01:07]} 27. c4 {[%emt 0:01:26]} b4 {[%emt 0:00:22]} 28. Kf1 {[%emt 0:03:27]} Qe7 {[%emt 0:07:47]} 29. Qg4 {[%emt 0:01:54]} Kh7 {[%emt 0:00:25]} 30. Qf3 {[%emt 0:07:23]} Kg7 {[%emt 0:00:51]} 31. Ke2 {[%emt 0:00:50]} Nh7 {[%emt 0:05:59]} 32. Kd2 {[%emt 0:05:03]} Bg5 {[%emt 0:02:32]} 33. Rh1 {[%emt 0:01:17]} Qf6 {[%emt 0:02:24]} 34. Qxf6+ {[%emt 0:00:17]} Bxf6 {[%emt 0:02:46]} 35. h4 {[%emt 0:01:31]} Ra7 {[%emt 0:01:29]} 36. Bd1 {[%emt 0:00:53]} Ne7 {[%emt 0:05:55]} 37. Rh3 {[%emt 0:01:39]} Ng8 {[%emt 0:01:30]} 38. Be2 {[%emt 0:01:01]} Ne7 {[%emt 0:01:35]} 39. Rah1 {[%emt 0:00:46]} Ng8 {[%emt 0:08:07]} 40. Kc2 {[%emt 0:00:25]} Rc7 {[%emt 0:00:41]} 41. Nf1 {[%emt 0:02:45]} Bd8 {[%emt 0:01:17]} 42. g4 {[%emt 0:01:22]} Rb7 {[%emt 0:01:28]} 43. Ng3 {[%emt 0:00:25]} Rd7 {[%emt 0:05:51]} 44. Kb2 {[%emt 0:04:29]} Rb7 {[%emt 0:01:33]} 45. Rg1 {[%emt 0:01:37]} Kf8 {[%emt 0:02:37]} 46. Kc2 {[%emt 0:04:04]} Rd7 {[%emt 0:00:36]} 47. Ra1 {[%emt 0:02:07]} Kg7 {[%emt 0:00:28]} 48. Rf1 {[%emt 0:04:05]} Bf6 {[%emt 0:02:42]} 49. Bd3 {[%emt 0:00:11]} Bd8 {[%emt 0:00:32]} 50. Ne2 {[%emt 0:03:15]} Bf6 {[%emt 0:00:33]} 51. Ng1 {[%emt 0:01:35]} Bd8 {[%emt 0:01:05]} 52. Nf3 {[%emt 0:00:48]} Rb7 {[%emt 0:00:53]} 53. Rfh1 {[%emt 0:02:18]} Rd7 {[%emt 0:00:51]} 54. Rg3 {[%emt 0:02:11]} Rb7 {[%emt 0:00:51]} 55. Rgh3 {[%emt 0:00:55]} Rd7 {[%emt 0:00:15]} 56. Rf1 {[%emt 0:00:47]} Rb7 {[%emt 0:00:43]} 57. Ng1 {[%emt 0:00:16]} Rd7 {[%emt 0:00:12]} 58. Ne2 {[%emt 0:00:07]} Bf6 {[%emt 0:00:10]} 59. Rh2 {[%emt 0:00:21]} Rb7 {[%emt 0:00:34]} 60. Rhh1 {[%emt 0:01:03]} Rd7 {[%emt 0:00:26]} 61. Bc1 {[%emt 0:00:58]} Rb7 {[%emt 0:00:26]} 62. Bb2 {[%emt 0:00:17]} Rc7 {[%emt 0:00:51]} 63. Rfg1 {[%emt 0:01:09]} Rb7 {[%emt 0:01:21]} 64. Rh2 {[%emt 0:00:58]} Rc7 {[%emt 0:00:28]} 65. Rg3 {[%emt 0:02:48]} Rb7 {[%emt 0:01:29]} 66. Rh1 {[%emt 0:01:27]} Rc7 {[%emt 0:00:17]} 67. Bc1 {[%emt 0:01:08]} Be7 {[%emt 0:04:39]} 68. g5 {[%emt 0:01:04]} h5 {[%emt 0:00:38]} 69. Bb2 {[%emt 0:00:28]} f6 {[%emt 0:00:35]} 70. f4 {[%emt 0:00:23]} Kf7 {[%emt 0:01:11]} 71. Rf1 {[%emt 0:00:25]} Kg7 {[%emt 0:00:10]} 72. Rfg1 {[%emt 0:00:25]} Nf8 {[%emt 0:00:43]} 73. Rf3 {[%emt 0:00:58]} Bd8 {[%emt 0:01:02]} 74. Ng3 {[%emt 0:02:05]} fxg5 {[%emt 0:01:01]} 75. hxg5 {[%emt 0:00:07]} Rf7 {[%emt 0:00:50]} 76. Rgf1 {[%emt 0:00:06]} Nd7 {[%emt 0:00:53]} 77. fxe5 {[%emt 0:00:48]} Rxf3 {[%emt 0:00:10]} 78. exd6+ {[%emt 0:00:23]} Rf6 {[%emt 0:00:37]} 79. Ne2 {[%emt 0:01:53]} Ne5 {[%emt 0:00:29]} 80. gxf6+ {[%emt 0:00:05]} Bxf6 {[%emt 0:01:27]} 81. Nf4 {[%emt 0:00:37]} Nxd3 {[%emt 0:01:18]} 82. d7 {[%emt 0:00:57]} Rxe4 {[%emt 0:01:10]} 83. Bxf6+ {[%emt 0:00:10]} Nxf6 {[%emt 0:00:05]} 84. d8=Q {[%emt 0:00:14]} Nxf4 {[%emt 0:00:06]} 85. Rxf4 {[%emt 0:00:12]} Rxf4 {[%emt 0:00:23]} 86. Qc7+ {[%emt 0:00:04]} 1-0

[Event "Marshall CC FIDE Premier November 2024"]
[Site "New York"]
[Date "2024.11.03"]
[Round "3.5"]
[White "Bonin, Jay"]
[Black "Gartenlaub, Corin"]
[Result "1/2-1/2"]
[ECO "E92"]
[WhiteElo "2127"]
[BlackElo "1895"]
[Annotator "RC"]
[PlyCount "75"]
[EventDate "2024.11.01"]
[EventType "swiss"]
[EventCountry "USA"]
[SourceTitle "playchess.com"]
[Source "ChessBase"]
[SourceQuality "1"]
[TimeControl "5400+30"]

1. d4 {[%emt 0:00:02]} d6 {[%emt 0:00:02]} 2. Nf3 {[%emt 0:00:16]} Nf6 {[%emt 0:00:11]} 3. c4 {[%emt 0:00:04]} g6 {[%emt 0:00:04]} 4. Nc3 {[%emt 0:00:04]} Bg7 {[%emt 0:00:08]} 5. e4 {[%emt 0:00:06]} O-O {[%emt 0:00:07]} 6. Be2 {[%emt 0:00:04]} e5 {[%emt 0:00:01]} 7. dxe5 {[%emt 0:00:06]} dxe5 {[%emt 0:00:04]} 8. Qxd8 {[%emt 0:00:05]} Rxd8 {[%emt 0:00:02]} 9. Bg5 {[%emt 0:00:06]} Na6 {[%emt 0:06:42]} 10. Nd5 {[%emt 0:00:22]} Rd6 {[%emt 0:00:45]} 11. Bxf6 {[%emt 0:03:04]} Bxf6 {[%emt 0:00:05]} 12. b4 {[%emt 0:00:49]} c6 {[%emt 0:04:05]} 13. Nxf6+ {[%emt 0:00:10]} Rxf6 {[%emt 0:00:07]} 14. a3 {[%emt 0:00:47]} Rf4 {[%emt 0:01:40]} 15. Nd2 {[%emt 0:00:27]} Nc7 {[%emt 0:02:55]} 16. g3 {[%emt 0:00:41]} Rf6 {[%emt 0:00:03]} 17. Nb3 {[%emt 0:02:01]} Bh3 {[%emt 0:02:05]} 18. Rg1 {[%emt 0:00:32]} h5 {[%emt 0:01:58]} 19. Rd1 {[%emt 0:00:49]} Bg4 {[%emt 0:01:33]} 20. Rd3 {[%emt 0:04:49]} Kf8 {[%emt 0:03:04]} 21. Bxg4 {[%emt 0:08:18]} hxg4 {[%emt 0:00:10]} 22. Nc5 {[%emt 0:00:36]} Ke8 {[%emt 0:02:22]} 23. Nxb7 {[%emt 0:01:38]} Ne6 {[%emt 0:00:28]} 24. Rd6 {[%emt 0:03:57]} Rf3 {[%emt 0:00:43]} 25. Kf1 {[%emt 0:06:11]} Rxa3 {[%emt 0:01:42]} 26. Kg2 {[%emt 0:00:08]} Rb8 {[%emt 0:01:11]} 27. Na5 {[%emt 0:02:15]} Rxb4 {[%emt 0:00:36]} 28. Nxc6 {[%emt 0:00:08]} Rxc4 {[%emt 0:00:10]} 29. Rb1 {[%emt 0:02:50]} Kf8 {[%emt 0:00:58]} 30. Rb8+ {[%emt 0:04:32]} Kg7 {[%emt 0:00:03]} 31. Rb7 {[%emt 0:00:18]} Nc5 {[%emt 0:06:39]} 32. Rxg6+ {[%emt 0:08:31]} Kxg6 {[%emt 0:01:12]} 33. Nxe5+ {[%emt 0:00:13]} Kf6 {[%emt 0:00:03]} 34. Nxc4 {[%emt 0:00:10]} Rc3 {[%emt 0:00:22]} 35. Rb4 {[%emt 0:03:49]} Nd3 {[%emt 0:00:19]} 36. Ra4 {[%emt 0:00:32]} Nc5 {[%emt 0:00:09]} 37. Rb4 {[%emt 0:01:22]} Nd3 {[%emt 0:00:06]} 38. Ra4 {[%emt 0:00:49]} 1/2-1/2

[Event "Marshall CC FIDE Premier November 2024"]
[Site "New York"]
[Date "2024.11.03"]
[Round "3.6"]
[White "Muthukumaran, Gurru"]
[Black "Hoffman, Luc"]
[Result "1/2-1/2"]
[ECO "B30"]
[WhiteElo "1859"]
[BlackElo "2088"]
[Annotator "RC"]
[PlyCount "146"]
[EventDate "2024.11.01"]
[EventType "swiss"]
[EventCountry "USA"]
[SourceTitle "playchess.com"]
[Source "ChessBase"]
[SourceQuality "1"]
[TimeControl "5400+30"]

1. e4 {[%emt 0:00:02]} c5 {[%emt 0:00:06]} 2. Nc3 {[%emt 0:00:06]} Nc6 {[%emt 0:00:24]} 3. Bb5 {[%emt 0:00:07]} Nd4 {[%emt 0:00:44]} 4. Nf3 {[%emt 0:00:07]} e6 {[%emt 0:01:27]} 5. O-O {[%emt 0:01:19]} a6 {[%emt 0:00:47]} 6. Bd3 {[%emt 0:00:42]} Ne7 {[%emt 0:04:22]} 7. Nxd4 {[%emt 0:00:36]} cxd4 {[%emt 0:00:07]} 8. Ne2 {[%emt 0:00:07]} Nc6 {[%emt 0:00:04]} 9. c3 {[%emt 0:03:01]} Bc5 {[%emt 0:00:31]} 10. b4 {[%emt 0:06:58]} Ba7 {[%emt 0:03:25]} 11. cxd4 {[%emt 0:02:55]} Nxd4 {[%emt 0:00:59]} 12. Bb2 {[%emt 0:00:22]} Qf6 {[%emt 0:04:18]} 13. Bc3 {[%emt 0:04:50]} d5 {[%emt 0:03:06]} 14. exd5 {[%emt 0:06:47]} exd5 {[%emt 0:00:17]} 15. Nxd4 {[%emt 0:01:44]} Bxd4 {[%emt 0:00:08]} 16. Qa4+ {[%emt 0:06:52]} Kf8 {[%emt 0:01:07]} 17. Rae1 {[%emt 0:03:29]} Be6 {[%emt 0:00:23]} 18. b5 {[%emt 0:05:59]} Bxc3 {[%emt 0:01:09]} 19. dxc3 {[%emt 0:05:39]} g6 {[%emt 0:00:53]} 20. f4 {[%emt 0:07:13]} Kg7 {[%emt 0:00:48]} 21. Re5 {[%emt 0:10:06]} Bd7 {[%emt 0:03:38]} 22. Qd4 {[%emt 0:02:54]} Bxb5 {[%emt 0:01:42]} 23. Bxb5 {[%emt 0:07:55]} axb5 {[%emt 0:00:11]} 24. Qxd5 {[%emt 0:00:56]} Rhd8 {[%emt 0:01:00]} 25. Qxb5 {[%emt 0:01:51]} Rxa2 {[%emt 0:00:59]} 26. Qxb7 {[%emt 0:06:35]} Rdd2 {[%emt 0:00:22]} 27. Qe4 {[%emt 0:02:29]} Qb6+ {[%emt 0:02:11]} 28. Kh1 {[%emt 0:00:14]} Rf2 {[%emt 0:01:56]} 29. Rg1 {[%emt 0:07:44]} Qf6 {[%emt 0:00:27]} 30. Qc4 {[%emt 0:01:41]} Rac2 {[%emt 0:01:06]} 31. Re4 {[%emt 0:01:35]} Rcd2 {[%emt 0:00:09]} 32. Rd4 {[%emt 0:01:33]} Rde2 {[%emt 0:00:01]} 33. Re4 {[%emt 0:00:50]} Rxe4 {[%emt 0:01:26]} 34. Qxe4 {[%emt 0:00:06]} Rxf4 {[%emt 0:00:15]} 35. Qd3 {[%emt 0:00:23]} Rf2 {[%emt 0:00:55]} 36. h3 {[%emt 0:00:37]} h5 {[%emt 0:00:44]} 37. Rd1 {[%emt 0:00:23]} Kh7 {[%emt 0:00:30]} 38. Qd4 {[%emt 0:00:58]} Qf5 {[%emt 0:00:06]} 39. c4 {[%emt 0:00:24]} Rc2 {[%emt 0:01:11]} 40. Qd5 {[%emt 0:00:42]} Qf2 {[%emt 0:00:42]} 41. Rb1 {[%emt 0:01:06]} Rd2 {[%emt 0:00:20]} 42. Qc6 {[%emt 0:00:27]} Rc2 {[%emt 0:01:44]} 43. Qd5 {[%emt 0:00:20]} Rd2 {[%emt 0:01:58]} 44. Qc6 {[%emt 0:00:53]} Qf5 {[%emt 0:00:37]} 45. Re1 {[%emt 0:00:30]} Rc2 {[%emt 0:00:20]} 46. Qe4 {[%emt 0:00:41]} Qf2 {[%emt 0:00:18]} 47. Rb1 {[%emt 0:00:25]} Rc3 {[%emt 0:02:42]} 48. Qd5 {[%emt 0:00:31]} Qf4 {[%emt 0:01:20]} 49. c5 {[%emt 0:00:27]} Qf2 {[%emt 0:00:32]} 50. c6 {[%emt 0:00:32]} Qf6 {[%emt 0:00:44]} 51. Re1 {[%emt 0:00:39]} Rxc6 {[%emt 0:00:37]} 52. Qd3 {[%emt 0:00:18]} Kg7 {[%emt 0:01:45]} 53. Rf1 {[%emt 0:00:21]} Rd6 {[%emt 0:02:43]} 54. Qc4 {[%emt 0:00:40]} Rd4 {[%emt 0:00:35]} 55. Rxf6 {[%emt 0:00:36]} Rxc4 {[%emt 0:00:01]} 56. Ra6 {[%emt 0:00:11]} h4 {[%emt 0:00:06]} 57. Kg1 {[%emt 0:00:16]} Rc2 {[%emt 0:00:06]} 58. Ra4 {[%emt 0:00:34]} g5 {[%emt 0:00:11]} 59. Ra3 {[%emt 0:00:38]} Kg6 {[%emt 0:00:22]} 60. Ra6+ {[%emt 0:00:35]} f6 {[%emt 0:00:06]} 61. Ra5 {[%emt 0:00:09]} Re2 {[%emt 0:00:05]} 62. Kf1 {[%emt 0:00:13]} Re5 {[%emt 0:00:04]} 63. Ra4 {[%emt 0:00:13]} f5 {[%emt 0:00:06]} 64. Kf2 {[%emt 0:00:07]} Kh5 {[%emt 0:00:19]} 65. Ra8 {[%emt 0:00:47]} g4 {[%emt 0:00:08]} 66. Rh8+ {[%emt 0:00:29]} Kg5 {[%emt 0:00:02]} 67. Rg8+ {[%emt 0:00:47]} Kf4 {[%emt 0:00:02]} 68. hxg4 {[%emt 0:00:10]} fxg4 {[%emt 0:00:01]} 69. Rf8+ {[%emt 0:00:15]} Ke4 {[%emt 0:00:20]} 70. g3 {[%emt 0:00:55]} h3 {[%emt 0:00:40]} 71. Rf4+ {[%emt 0:00:21]} Kd3 {[%emt 0:00:04]} 72. Rxg4 {[%emt 0:00:37]} Re2+ {[%emt 0:00:09]} 73. Kf3 {[%emt 0:00:46]} Re3+ {[%emt 0:01:10]} 1/2-1/2

[Event "Marshall CC FIDE Premier November 2024"]
[Site "New York"]
[Date "2024.11.03"]
[Round "3.7"]
[White "Tadevosyan, Levon"]
[Black "Kozower, Ethan"]
[Result "1-0"]
[ECO "B24"]
[WhiteElo "1867"]
[BlackElo "1985"]
[Annotator "RC"]
[PlyCount "97"]
[EventDate "2024.11.01"]
[EventType "swiss"]
[EventCountry "USA"]
[SourceTitle "playchess.com"]
[Source "ChessBase"]
[SourceQuality "1"]
[TimeControl "5400+30"]

1. e4 {[%emt 0:00:03]} c5 {[%emt 0:08:59]} 2. Ne2 {[%emt 0:00:21]} Nf6 {[%emt 0:00:26]} 3. Nbc3 {[%emt 0:00:05]} Nc6 {[%emt 0:00:09]} 4. d3 {[%emt 0:00:04]} e6 {[%emt 0:02:14]} 5. g3 {[%emt 0:00:07]} d5 {[%emt 0:00:12]} 6. exd5 {[%emt 0:00:15]} exd5 {[%emt 0:00:25]} 7. Bg2 {[%emt 0:00:03]} d4 {[%emt 0:05:05]} 8. Ne4 {[%emt 0:00:17]} Nxe4 {[%emt 0:04:14]} 9. dxe4 {[%emt 0:00:44]} Bd6 {[%emt 0:06:24]} 10. c3 {[%emt 0:01:08]} O-O {[%emt 0:04:58]} 11. O-O {[%emt 0:00:21]} Bc7 {[%emt 0:01:41]} 12. b3 {[%emt 0:01:56]} dxc3 {[%emt 0:17:00]} 13. Nxc3 {[%emt 0:00:17]} Be5 {[%emt 0:03:26]} 14. Bb2 {[%emt 0:00:26]} Nb4 {[%emt 0:03:04]} 15. Qh5 {[%emt 0:05:28]} Bd4 {[%emt 0:06:45]} 16. Rad1 {[%emt 0:02:49]} Qf6 {[%emt 0:02:11]} 17. Nd5 {[%emt 0:03:44]} Nxd5 {[%emt 0:00:25]} 18. Bxd4 {[%emt 0:00:07]} cxd4 {[%emt 0:00:06]} 19. Qxd5 {[%emt 0:05:13]} Rd8 {[%emt 0:02:08]} 20. Qc5 {[%emt 0:02:21]} Qd6 {[%emt 0:11:08]} 21. Qxd6 {[%emt 0:04:26]} Rxd6 {[%emt 0:00:02]} 22. e5 {[%emt 0:00:08]} Rd8 {[%emt 0:01:27]} 23. Rd2 {[%emt 0:01:34]} g6 {[%emt 0:04:30]} 24. Rfd1 {[%emt 0:00:25]} Bg4 {[%emt 0:02:02]} 25. f3 {[%emt 0:01:02]} Be6 {[%emt 0:01:14]} 26. Rxd4 {[%emt 0:00:05]} Rxd4 {[%emt 0:00:31]} 27. Rxd4 {[%emt 0:00:02]} Rc8 {[%emt 0:00:02]} 28. Rd2 {[%emt 0:01:03]} a5 {[%emt 0:01:42]} 29. Bf1 {[%emt 0:13:23]} Rc5 {[%emt 0:01:48]} 30. f4 {[%emt 0:00:07]} b5 {[%emt 0:00:55]} 31. Bd3 {[%emt 0:02:06]} a4 {[%emt 0:04:16]} 32. Bc2 {[%emt 0:06:21]} b4 {[%emt 0:06:03]} 33. Bd1 {[%emt 0:03:34]} Rc1 {[%emt 0:00:32]} 34. Kf2 {[%emt 0:00:15]} Rb1 {[%emt 0:00:49]} 35. bxa4 {[%emt 0:00:34]} Ra1 {[%emt 0:00:33]} 36. Bb3 {[%emt 0:00:57]} Bh3 {[%emt 0:00:30]} 37. a5 {[%emt 0:00:21]} Rf1+ {[%emt 0:00:30]} 38. Ke3 {[%emt 0:00:12]} Re1+ {[%emt 0:00:06]} 39. Kd4 {[%emt 0:00:04]} Rc1 {[%emt 0:00:29]} 40. Bd5 {[%emt 0:00:25]} Bc8 {[%emt 0:00:22]} 41. Be4 {[%emt 0:01:14]} Rc7 {[%emt 0:00:41]} 42. Rc2 {[%emt 0:00:20]} Rd7+ {[%emt 0:00:09]} 43. Kc5 {[%emt 0:00:09]} Ba6 {[%emt 0:01:10]} 44. Kb6 {[%emt 0:00:11]} Bf1 {[%emt 0:00:20]} 45. a6 {[%emt 0:00:17]} f5 {[%emt 0:00:31]} 46. a7 {[%emt 0:00:17]} Rxa7 {[%emt 0:00:12]} 47. Bd5+ {[%emt 0:00:08]} Rf7 {[%emt 0:00:03]} 48. Rc7 {[%emt 0:00:05]} b3 {[%emt 0:00:06]} 49. axb3 {[%emt 0:00:09]} 1-0

[Event "Marshall CC FIDE Premier November 2024"]
[Site "New York"]
[Date "2024.11.03"]
[Round "3.8"]
[White "Zhao, Kevin"]
[Black "Li, Aiden Linyuan"]
[Result "0-1"]
[ECO "C07"]
[WhiteElo "2020"]
[BlackElo "1923"]
[Annotator "RC"]
[PlyCount "83"]
[EventDate "2024.11.01"]
[EventType "swiss"]
[EventCountry "USA"]
[SourceTitle "playchess.com"]
[Source "ChessBase"]
[SourceQuality "1"]
[TimeControl "5400+30"]

1. e4 {[%emt 0:00:03]} e6 {[%emt 0:00:09]} 2. d4 {[%emt 0:00:05]} d5 {[%emt 0:00:07]} 3. Nd2 {[%emt 0:00:04]} c5 {[%emt 0:00:51]} 4. exd5 {[%emt 0:00:07]} Qxd5 {[%emt 0:00:42]} 5. Ngf3 {[%emt 0:00:02]} cxd4 {[%emt 0:00:14]} 6. Bc4 {[%emt 0:00:18]} Qd6 {[%emt 0:00:26]} 7. O-O {[%emt 0:00:06]} Nf6 {[%emt 0:00:05]} 8. Nb3 {[%emt 0:00:06]} Nc6 {[%emt 0:00:07]} 9. Nbxd4 {[%emt 0:00:06]} Nxd4 {[%emt 0:00:07]} 10. Nxd4 {[%emt 0:00:06]} a6 {[%emt 0:00:13]} 11. Re1 {[%emt 0:00:16]} Be7 {[%emt 0:00:10]} 12. Be3 {[%emt 0:05:21]} b5 {[%emt 0:05:37]} 13. Qf3 {[%emt 0:02:01]} Rb8 {[%emt 0:01:15]} 14. Bb3 {[%emt 0:04:46]} Bb7 {[%emt 0:00:27]} 15. Qh3 {[%emt 0:01:55]} O-O {[%emt 0:02:13]} 16. Rad1 {[%emt 0:07:58]} Rbd8 {[%emt 0:06:15]} 17. c3 {[%emt 0:05:03]} Qc7 {[%emt 0:06:36]} 18. Bc2 {[%emt 0:12:08]} Rd5 {[%emt 0:16:44]} 19. g4 {[%emt 0:05:23]} g6 {[%emt 0:08:21]} 20. g5 {[%emt 0:10:27]} Nh5 {[%emt 0:01:31]} 21. Bb3 {[%emt 0:05:13]} Re5 {[%emt 0:04:09]} 22. Kf1 {[%emt 0:18:12]} Nf4 {[%emt 0:26:10]} 23. Qg3 {[%emt 0:05:33]} Nh5 {[%emt 0:02:58]} 24. Qg1 {[%emt 0:02:38]} Bd6 {[%emt 0:02:17]} 25. f3 {[%emt 0:01:31]} Rc5 {[%emt 0:02:42]} 26. Re2 {[%emt 0:01:25]} e5 {[%emt 0:00:25]} 27. Nc2 {[%emt 0:00:48]} Bxf3 {[%emt 0:01:00]} 28. Rxd6 {[%emt 0:01:01]} Bxe2+ {[%emt 0:01:57]} 29. Kxe2 {[%emt 0:00:01]} Qxd6 {[%emt 0:02:09]} 30. Bxc5 {[%emt 0:00:08]} Nf4+ {[%emt 0:00:05]} 31. Kf3 {[%emt 0:00:49]} Qc6+ {[%emt 0:00:07]} 32. Kg4 {[%emt 0:00:27]} Qe4 {[%emt 0:01:58]} 33. Qe3 {[%emt 0:04:47]} Qf5+ {[%emt 0:00:37]} 34. Kg3 {[%emt 0:00:25]} Qxg5+ {[%emt 0:00:42]} 35. Kf2 {[%emt 0:00:10]} Qg2+ {[%emt 0:00:25]} 36. Ke1 {[%emt 0:00:01]} Qxh2 {[%emt 0:00:19]} 37. Qe4 {[%emt 0:01:47]} Rd8 {[%emt 0:01:24]} 38. Nd4 {[%emt 0:00:36]} Qg1+ {[%emt 0:00:50]} 39. Kd2 {[%emt 0:00:05]} Qg2+ {[%emt 0:00:05]} 40. Ke3 {[%emt 0:00:54]} Rxd4 {[%emt 0:02:20]} 41. Qxe5 {[%emt 0:01:10]} Qg3+ {[%emt 0:00:23]} 42. Kxd4 {[%emt 0:00:56]} 0-1

[Event "Marshall CC FIDE Premier November 2024"]
[Site "New York"]
[Date "2024.11.03"]
[Round "3.9"]
[White "Knowles, Chase"]
[Black "Panuganti, Kireet"]
[Result "0-1"]
[ECO "A13"]
[WhiteElo "1966"]
[BlackElo "2020"]
[Annotator "RC"]
[PlyCount "50"]
[EventDate "2024.11.01"]
[EventType "swiss"]
[EventCountry "USA"]
[SourceTitle "playchess.com"]
[Source "ChessBase"]
[SourceQuality "1"]
[TimeControl "5400+30"]

1. Nf3 {[%emt 0:00:03]} Nf6 {[%emt 0:08:30]} 2. c4 {[%emt 0:00:05]} e6 {[%emt 0:00:08]} 3. e3 {[%emt 0:00:03]} Be7 {[%emt 0:00:58]} 4. Nc3 {[%emt 0:00:43]} O-O {[%emt 0:01:18]} 5. b3 {[%emt 0:00:08]} b6 {[%emt 0:00:17]} 6. Bb2 {[%emt 0:00:48]} Bb7 {[%emt 0:00:06]} 7. Qc2 {[%emt 0:00:57]} c5 {[%emt 0:01:35]} 8. Be2 {[%emt 0:01:43]} d5 {[%emt 0:03:22]} 9. cxd5 {[%emt 0:00:42]} Nxd5 {[%emt 0:00:21]} 10. O-O {[%emt 0:02:27]} Nd7 {[%emt 0:04:30]} 11. Rac1 {[%emt 0:07:19]} Nxc3 {[%emt 0:04:24]} 12. dxc3 {[%emt 0:02:05]} Qc7 {[%emt 0:01:03]} 13. Rfd1 {[%emt 0:04:09]} Rad8 {[%emt 0:07:00]} 14. e4 {[%emt 0:08:41]} Bd6 {[%emt 0:05:11]} 15. g3 {[%emt 0:05:29]} Be7 {[%emt 0:21:42]} 16. Nd2 {[%emt 0:06:09]} f5 {[%emt 0:02:14]} 17. f3 {[%emt 0:08:10]} Bd6 {[%emt 0:01:54]} 18. Kf2 {[%emt 0:09:14]} fxe4 {[%emt 0:09:58]} 19. Nxe4 {[%emt 0:00:53]} Nf6 {[%emt 0:01:47]} 20. Ng5 {[%emt 0:08:19]} Bxg3+ {[%emt 0:11:02]} 21. Kg2 {[%emt 0:08:20]} Bxh2 {[%emt 0:01:27]} 22. Nxe6 {[%emt 0:02:52]} Qg3+ {[%emt 0:00:11]} 23. Kh1 {[%emt 0:00:05]} Bg1 {[%emt 0:00:39]} 24. Bf1 {[%emt 0:02:28]} Bxf3+ {[%emt 0:00:06]} 25. Bg2 {[%emt 0:00:02]} Qh2# {[%emt 0:00:04]} 0-1

[Event "Marshall CC FIDE Premier November 2024"]
[Site "New York"]
[Date "2024.11.03"]
[Round "3.10"]
[White "Goodrich, Elliott"]
[Black "Nicholson, Ian"]
[Result "1/2-1/2"]
[ECO "B41"]
[WhiteElo "1923"]
[BlackElo "1821"]
[Annotator "RC"]
[PlyCount "82"]
[EventDate "2024.11.01"]
[EventType "swiss"]
[EventCountry "USA"]
[SourceTitle "playchess.com"]
[Source "ChessBase"]
[SourceQuality "1"]
[TimeControl "5400+30"]

1. e4 {[%emt 0:00:03]} c5 {[%emt 0:03:17]} 2. Nf3 {[%emt 0:00:06]} e6 {[%emt 0:00:34]} 3. d4 {[%emt 0:00:09]} cxd4 {[%emt 0:00:34]} 4. Nxd4 {[%emt 0:00:05]} a6 {[%emt 0:00:02]} 5. c4 {[%emt 0:00:06]} Nf6 {[%emt 0:00:07]} 6. Nc3 {[%emt 0:00:03]} Qc7 {[%emt 0:00:19]} 7. Be2 {[%emt 0:00:05]} Bb4 {[%emt 0:00:13]} 8. Qd3 {[%emt 0:02:44]} Nc6 {[%emt 0:00:38]} 9. Nxc6 {[%emt 0:00:18]} bxc6 {[%emt 0:01:28]} 10. O-O {[%emt 0:00:18]} O-O {[%emt 0:01:18]} 11. Be3 {[%emt 0:03:47]} Be7 {[%emt 0:07:07]} 12. Kh1 {[%emt 0:03:16]} d6 {[%emt 0:01:14]} 13. f4 {[%emt 0:03:32]} Rb8 {[%emt 0:01:03]} 14. b3 {[%emt 0:00:20]} e5 {[%emt 0:00:37]} 15. Rad1 {[%emt 0:04:11]} Rd8 {[%emt 0:01:44]} 16. Bf3 {[%emt 0:08:41]} a5 {[%emt 0:03:03]} 17. Qc2 {[%emt 0:03:24]} Nd7 {[%emt 0:01:54]} 18. Qf2 {[%emt 0:02:51]} exf4 {[%emt 0:02:38]} 19. Bxf4 {[%emt 0:00:05]} Ne5 {[%emt 0:00:31]} 20. Rd2 {[%emt 0:12:59]} Be6 {[%emt 0:04:47]} 21. Rfd1 {[%emt 0:03:14]} f6 {[%emt 0:10:23]} 22. h3 {[%emt 0:04:23]} Rf8 {[%emt 0:11:14]} 23. Qg3 {[%emt 0:07:38]} Kh8 {[%emt 0:04:10]} 24. Ne2 {[%emt 0:10:02]} Rbe8 {[%emt 0:10:38]} 25. Nd4 {[%emt 0:00:46]} Qc8 {[%emt 0:03:14]} 26. Be2 {[%emt 0:12:30]} Rd8 {[%emt 0:07:55]} 27. Qc3 {[%emt 0:02:32]} Ng6 {[%emt 0:07:37]} 28. Bh2 {[%emt 0:01:27]} f5 {[%emt 0:03:06]} 29. exf5 {[%emt 0:05:54]} Bxf5 {[%emt 0:00:20]} 30. Qxa5 {[%emt 0:00:41]} Bg5 {[%emt 0:05:46]} 31. Rb2 {[%emt 0:01:37]} d5 {[%emt 0:01:15]} 32. Nxf5 {[%emt 0:02:06]} Qxf5 {[%emt 0:00:45]} 33. Bg4 {[%emt 0:00:09]} Qf6 {[%emt 0:01:21]} 34. Rbb1 {[%emt 0:00:25]} Ra8 {[%emt 0:03:12]} 35. Qb6 {[%emt 0:01:16]} Rxa2 {[%emt 0:00:50]} 36. cxd5 {[%emt 0:01:21]} h5 {[%emt 0:00:24]} 37. Bxh5 {[%emt 0:01:14]} Nh4 {[%emt 0:00:51]} 38. Qd4 {[%emt 0:00:55]} Qf5 {[%emt 0:01:44]} 39. Qg4 {[%emt 0:01:33]} Qf6 {[%emt 0:01:00]} 40. Qd4 {[%emt 0:02:06]} Qf5 {[%emt 0:00:21]} 41. Qg4 {[%emt 0:00:39]} Qf6 {[%emt 0:01:46]} 1/2-1/2